fUST/lending_fUST_20240506
["ID","MTS","AMOUNT","RATE_DAILY","PERIOD"]
[326491407,1715001054877,-178.018031,0.0001726,2]
[326491408,1715001054886,-500.0,0.0001726,2]
[326491409,1715001054896,-500.0,0.0001726,2]
[326491410,1715001054905,-178.018031,0.0001726,2]
[326491411,1715001055044,-500.0,0.0001726,2]
[326491412,1715001055053,-178.018031,0.0001726,2]
[326491413,1715001055065,-178.018031,0.0001726,2]
[326491414,1715001055075,-551.5,0.0001726,2]
[326491415,1715001055086,-598.83,0.0001726,2]
[326491416,1715001055095,-787.21,0.0001726,2]
[326491417,1715001055104,-500.0,0.0001726,2]
[326491418,1715001055113,-6200.74,0.0001726,2]
[326491419,1715001055122,-500.0,0.0001726,2]
[326491420,1715001055131,-501.44,0.0001726,2]
[326491421,1715001055140,-7461.92,0.0001726,2]
[326491422,1715001055150,-608.81,0.0001726,2]
[326491423,1715001055159,-6869.09,0.0001726,2]
[326491424,1715001055168,-3420.54,0.0001726,2]
[326491425,1715001055177,-500.0,0.0001726,2]
[326491426,1715001055186,-553.6,0.0001726,2]
[326491427,1715001055196,-1000.0,0.0001726,2]
[326491428,1715001055205,-500.0,0.0001726,2]
[326491429,1715001055214,-500.0,0.0001726,2]
[326491430,1715001055223,-500.0,0.0001726,2]
[326491431,1715001055232,-1567.99,0.0001726,2]
[326491432,1715001055241,-7650.93,0.0001726,2]
[326491433,1715001055251,-500.0,0.0001726,2]
[326491434,1715001055261,-500.0,0.0001726,2]
[326491435,1715001055270,-500.0,0.0001726,2]
[326491436,1715001055279,-515.88,0.0001726,2]
[326491437,1715001055289,-2092.47,0.0001726,2]
[326491438,1715001055298,-929.3,0.0001726,2]
[326491439,1715001055308,-681.28,0.0001726,2]
[326491440,1715001055317,-154.72145202,0.00017364,2]
[326491441,1715001055326,-98447.16399425,0.00017534,2]
[326491442,1715001055338,-500.0,0.00017534,2]
[326491443,1715001055347,-500.0,0.00017534,2]
[326491444,1715001055356,-500.0,0.00017534,2]
[326491445,1715001055365,-500.0,0.00017534,2]
[326491446,1715001055375,-500.0,0.00017534,2]
[326491447,1715001055385,-1137.64,0.00017534,2]
[326491448,1715001055394,-631.86,0.00017534,2]
[326491449,1715001055404,-500.0,0.00017534,2]
[326491450,1715001055415,-500.0,0.00017534,2]
[326491451,1715001055424,-500.0,0.00017534,2]
[326491452,1715001055433,-542.75882272,0.00017534,2]
[326491453,1715001055443,-500.0,0.00017534,2]
[326491454,1715001055452,-1645.28,0.00017534,2]
[326491455,1715001055462,-500.0,0.00017534,2]
[326491456,1715001055471,-544.41,0.00017534,2]
[326491457,1715001055480,-500.0,0.00017534,2]
[326491458,1715001055489,-886.98,0.00017534,2]
[326491459,1715001055499,-500.0,0.00017534,2]
[326491460,1715001055509,-500.0,0.00017534,2]
[326491461,1715001055519,-500.0,0.00017534,2]
[326491462,1715001055528,-621.71,0.00017534,2]
[326491463,1715001055538,-2173.11,0.00017534,2]
[326491464,1715001055547,-500.0,0.00017534,2]
[326491465,1715001055556,-500.0,0.00017534,2]
[326491466,1715001055565,-662.39,0.00017534,2]
[326491467,1715001055575,-506.82520255,0.00017534,2]
[326491468,1715001055585,-500.0,0.00017534,2]
[326491469,1715001055595,-500.0,0.00017534,2]
[326491470,1715001055604,-500.0,0.00017534,2]
[326491471,1715001055614,-500.0,0.00017534,2]
[326491472,1715001055623,-608.4,0.00017534,2]
[326491473,1715001055632,-740.91,0.00017534,2]
[326491474,1715001055642,-500.0,0.00017534,2]
[326491475,1715001055652,-898.62,0.00017534,2]
[326491476,1715001055661,-500.0,0.00017534,2]
[326491477,1715001055670,-500.0,0.00017534,2]
[326491478,1715001055682,-500.0,0.00017534,2]
[326491479,1715001055691,-500.0,0.00017534,2]
[326491480,1715001055704,-500.0,0.00017534,2]
[326491481,1715001055713,-500.0,0.00017534,2]
[326491482,1715001055722,-500.0,0.00017534,2]
[326491483,1715001055731,-500.0,0.00017534,2]
[326491484,1715001055746,-500.0,0.00017534,2]
[326491485,1715001055756,-500.0,0.00017534,2]
[326491486,1715001055765,-500.0,0.00017534,2]
[326491487,1715001055775,-747.11,0.00017534,2]
[326491488,1715001055784,-500.0,0.00017534,2]
[326491489,1715001055794,-500.0,0.00017534,2]
[326491490,1715001055803,-1690.52,0.00017534,2]
[326491491,1715001055813,-1318.39,0.00017534,2]
[326491492,1715001055822,-2039.16,0.00017534,2]
[326491493,1715001055832,-1071.2,0.00017534,2]
[326491494,1715001055841,-500.0,0.00017534,2]
[326491495,1715001055850,-500.0,0.00017534,2]
[326491496,1715001055860,-1000.0,0.00017534,2]
[326491497,1715001055869,-500.0,0.00017534,2]
[326491498,1715001055879,-810.2,0.00017534,2]
[326491499,1715001055888,-1137.42,0.00017534,2]
[326491500,1715001055898,-500.0,0.00017534,2]
[326491501,1715001055908,-465.74112308,0.00017534,2]
[326491502,1715001055917,-1365.47,0.00017534,2]
[326491503,1715001055927,-500.0,0.00017534,2]
[326491504,1715001055936,-1072.12,0.00017534,2]
[326491505,1715001055946,-500.0,0.00017534,2]
[326491506,1715001055955,-500.0,0.00017534,2]
[326491507,1715001055965,-500.0,0.00017534,2]
[326491508,1715001055974,-500.0,0.00017534,2]
[326491509,1715001055983,-627.7,0.00017534,2]
[326491510,1715001055993,-500.0,0.00017534,2]
[326491511,1715001056002,-500.0,0.00017534,2]
[326491512,1715001056012,-500.0,0.00017534,2]
[326491513,1715001056022,-593.61,0.00017534,2]
[326491514,1715001056031,-575.24,0.00017534,2]
[326491515,1715001056041,-596.54,0.00017534,2]
[326491516,1715001056050,-500.0,0.00017534,2]
[326491517,1715001056060,-500.0,0.00017534,2]
[326491518,1715001056069,-500.0,0.00017534,2]
[326491519,1715001056079,-256.24102087,0.00017534,2]
[326491520,1715001056090,-2353.15,0.00017534,2]
[326491521,1715001056105,-699.52,0.00017534,2]
[326491522,1715001056115,-500.0,0.00017534,2]
[326491523,1715001056124,-500.0,0.00017534,2]
[326491524,1715001056133,-1800.16,0.00017534,2]
[326491525,1715001056144,-5045.24,0.00017534,2]
[326491526,1715001056154,-500.0,0.00017534,2]
[326491527,1715001056163,-1046.92,0.00017534,2]
[326491528,1715001056173,-733.82,0.00017534,2]
[326491529,1715001056182,-1727.07,0.00017534,2]
[326491530,1715001056194,-593.95,0.00017534,2]
[326491531,1715001056205,-500.0,0.00017534,2]
[326491532,1715001056215,-500.0,0.00017534,2]
[326491533,1715001056225,-500.0,0.00017534,2]
[326491534,1715001056235,-532.27,0.00017534,2]
[326491535,1715001056245,-1962.34,0.00017534,2]
[326491536,1715001056254,-500.0,0.00017534,2]
[326491537,1715001056264,-774.59,0.00017534,2]
[326491538,1715001056274,-2105.62,0.00017534,2]
[326491539,1715001056284,-500.0,0.00017534,2]
[326491540,1715001056294,-500.0,0.00017534,2]
[326491541,1715001056304,-717.58,0.00017534,2]
[326491542,1715001056314,-500.0,0.00017534,2]
[326491543,1715001056323,-500.0,0.00017534,2]
[326491544,1715001056334,-500.0,0.00017534,2]
[326491545,1715001056347,-500.0,0.00017534,2]
[326491546,1715001056357,-500.0,0.00017534,2]
[326491547,1715001056367,-500.0,0.00017534,2]
[326491548,1715001056378,-500.0,0.00017534,2]
[326491549,1715001056387,-500.0,0.00017534,2]
[326491550,1715001056397,-714.46,0.00017534,2]
[326491551,1715001056407,-500.0,0.00017534,2]
[326491552,1715001056418,-618.81512289,0.00017534,2]
[326491553,1715001056427,-500.0,0.00017534,2]
[326491554,1715001056435,-500.0,0.00017534,2]
[326491555,1715001056444,-500.0,0.00017534,2]
[326491556,1715001056455,-500.0,0.00017534,2]
[326491557,1715001056464,-500.0,0.00017534,2]
[326491558,1715001056474,-500.0,0.00017534,2]
[326491559,1715001056483,-3590.49,0.00017534,2]
[326491560,1715001056492,-1033.57,0.00017534,2]
[326491561,1715001056501,-625.7,0.00017534,2]
[326491562,1715001056511,-500.0,0.00017534,2]
[326491563,1715001056520,-700.17,0.00017534,2]
[326491564,1715001056530,-684.77,0.00017534,2]
[326491565,1715001056539,-500.0,0.00017534,2]
[326491566,1715001056549,-500.0,0.00017534,2]
[326491567,1715001056559,-500.0,0.00017534,2]
[326491568,1715001056569,-572.79,0.00017534,2]
[326491569,1715001056579,-500.0,0.00017534,2]
[326491570,1715001056588,-950.21,0.00017534,2]
[326491571,1715001056598,-500.0,0.00017534,2]
[326491572,1715001056607,-519.29,0.00017534,2]
[326491573,1715001056617,-159.2284615,0.00017534,2]
[326491574,1715001056627,-686.92,0.00017534,2]
[326491575,1715001056636,-500.0,0.00017534,2]
[326491576,1715001056645,-500.0,0.00017534,2]
[326491577,1715001056655,-500.0,0.00017534,2]
[326491578,1715001056664,-1345.07,0.00017534,2]
[326491579,1715001056674,-1183.75,0.00017534,2]
[326491580,1715001056683,-500.0,0.00017534,2]
[326491581,1715001056693,-500.0,0.00017534,2]
[326491582,1715001056702,-500.0,0.00017534,2]
[326491583,1715001056713,-14250.63,0.00017534,2]
[326491584,1715001056723,-500.0,0.00017534,2]
[326491585,1715001056732,-524.3,0.00017534,2]
[326491586,1715001056742,-8999.19,0.00017534,2]
[326491587,1715001056751,-10484.08,0.00017534,2]
[326491588,1715001056760,-500.0,0.00017534,2]
[326491589,1715001056770,-853.12,0.00017534,2]
[326491590,1715001056780,-500.0,0.00017534,2]
[326491591,1715001056789,-500.0,0.00017534,2]
[326491592,1715001056798,-500.0,0.00017534,2]
[326491593,1715001056807,-500.0,0.00017534,2]
[326491594,1715001056816,-500.0,0.00017534,2]
[326491595,1715001056826,-500.0,0.00017534,2]
[326491596,1715001056835,-500.0,0.00017534,2]
[326491597,1715001056844,-1220.42,0.00017534,2]
[326491598,1715001056853,-537.39,0.00017534,2]
[326491599,1715001056863,-869.6,0.00017534,2]
[326491600,1715001056872,-5697.55,0.00017534,2]
[326491601,1715001056882,-642.01,0.00017534,2]
[326491602,1715001056891,-12706.29,0.00017534,2]
[326491603,1715001056901,-500.0,0.00017534,2]
[326491604,1715001056910,-1579.61,0.00017534,2]
[326491605,1715001056919,-763.61,0.00017534,2]
[326491606,1715001056929,-500.0,0.00017534,2]
[326491607,1715001056939,-500.0,0.00017534,2]
[326491608,1715001056949,-1177.83,0.00017534,2]
[326491609,1715001056960,-951.38,0.00017534,2]
[326491610,1715001056969,-500.0,0.00017534,2]
[326491611,1715001056979,-500.0,0.00017534,2]
[326491612,1715001056987,-500.0,0.00017534,2]
[326491613,1715001056997,-2621.5,0.00017534,2]
[326491614,1715001057006,-645.78,0.00017534,2]
[326491615,1715001057015,-6405.17,0.00017534,2]
[326491616,1715001057024,-517.14253848,0.00017534,2]
[326491617,1715001057033,-500.0,0.00017534,2]
[326491618,1715001057042,-178.018031,0.00017534,2]
[326491619,1715001057051,-178.018031,0.00017534,2]
[326491620,1715001057060,-500.0,0.00017534,2]
[326491621,1715001057069,-552.8752047,0.00017534,2]
[326491622,1715001057079,-500.0,0.00017534,2]
[326491623,1715001057087,-178.018031,0.00017534,2]
[326491624,1715001057097,-551.5,0.00017534,2]
[326491625,1715001057108,-178.018032,0.00017534,2]
[326491626,1715001057117,-598.83,0.00017534,2]
[326491627,1715001057127,-787.21,0.00017534,2]
[326491628,1715001057136,-500.0,0.00017534,2]
[326491629,1715001057145,-6200.74,0.00017534,2]
[326491630,1715001057155,-500.0,0.00017534,2]
[326491631,1715001057164,-501.44,0.00017534,2]
[326491632,1715001057173,-7461.92,0.00017534,2]
[326491633,1715001057182,-608.81,0.00017534,2]
[326491634,1715001057192,-6869.09,0.00017534,2]
[326491635,1715001057201,-3420.54,0.00017534,2]
[326491636,1715001057215,-500.0,0.00017534,2]
[326491637,1715001057224,-553.6,0.00017534,2]
[326491638,1715001057234,-147.92675179,0.00017534,2]
[326491639,1715001058735,-500.0,0.00016438,2]
[326491640,1715001058744,-500.0,0.00016712,2]
[326491641,1715001058753,-500.0,0.00016986,2]
[326491642,1715001058762,-500.0,0.0001726,2]
[326491643,1715001058772,-852.07324821,0.00017534,2]
[326491644,1715001058782,-500.0,0.00017534,2]
[326491645,1715001058791,-500.0,0.00017534,2]
[326491646,1715001058800,-500.0,0.00017534,2]
[326491647,1715001058810,-1567.99,0.00017534,2]
[326491648,1715001058819,-7650.93,0.00017534,2]
[326491649,1715001058965,-500.0,0.00017534,2]
[326491650,1715001058975,-500.0,0.00017534,2]
[326491651,1715001058985,-500.0,0.00017534,2]
[326491652,1715001058995,-515.88,0.00017534,2]
[326491653,1715001059004,-2092.47,0.00017534,2]
[326491654,1715001059013,-681.28,0.00017534,2]
[326491655,1715001059023,-929.3,0.00017534,2]
[326491656,1715001059032,-500.0,0.00017534,2]
[326491657,1715001059042,-150.0,0.00017665,3]
[326491658,1715001059051,-150.0,0.00017805,3]
[326491659,1715001059060,-380.57600059,0.00017808,2]
[326491660,1715001059070,-500.0,0.00017808,2]
[326491661,1715001059079,-587.07678689,0.00017808,2]
[326491662,1715001059088,-500.0,0.00017808,2]
[326491663,1715001059097,-1137.64,0.00017808,2]
[326491664,1715001059108,-631.86,0.00017808,2]
[326491665,1715001059117,-500.0,0.00017808,2]
[326491666,1715001059126,-612.12628954,0.00017808,2]
[326491667,1715001059136,-500.0,0.00017808,2]
[326491668,1715001059145,-609.34945977,0.00017808,2]
[326491669,1715001059155,-1645.28,0.00017808,2]
[326491670,1715001059164,-500.0,0.00017808,2]
[326491671,1715001059173,-544.41,0.00017808,2]
[326491672,1715001059182,-500.0,0.00017808,2]
[326491673,1715001059192,-886.98,0.00017808,2]
[326491674,1715001059201,-500.0,0.00017808,2]
[326491675,1715001059212,-500.0,0.00017808,2]
[326491676,1715001059222,-621.71,0.00017808,2]
[326491677,1715001059231,-2173.11,0.00017808,2]
[326491678,1715001059241,-500.0,0.00017808,2]
[326491679,1715001059250,-500.0,0.00017808,2]
[326491680,1715001059260,-662.39,0.00017808,2]
[326491681,1715001059270,-500.0,0.00017808,2]
[326491682,1715001059279,-500.0,0.00017808,2]
[326491683,1715001059288,-399.13181764,0.00017808,2]
[326491684,1715001059297,-500.0,0.00017808,2]
[326491685,1715001059307,-608.4,0.00017808,2]
[326491686,1715001059316,-740.91,0.00017808,2]
[326491687,1715001059325,-500.0,0.00017808,2]
[326491688,1715001059337,-898.62,0.00017808,2]
[326491689,1715001059348,-500.0,0.00017808,2]
[326491690,1715001059357,-500.0,0.00017808,2]
[326491691,1715001059367,-500.0,0.00017808,2]
[326491692,1715001059376,-605.80149357,0.00017808,2]
[326491693,1715001059387,-500.0,0.00017808,2]
[326491694,1715001059397,-500.0,0.00017808,2]
[326491695,1715001059407,-202.26213334,0.00017808,2]
[326491696,1715001059418,-500.0,0.00017808,2]
[326491697,1715001059428,-500.0,0.00017808,2]
[326491698,1715001059438,-500.0,0.00017808,2]
[326491699,1715001059447,-500.0,0.00017808,2]
[326491700,1715001059456,-747.11,0.00017808,2]
[326491701,1715001059466,-500.0,0.00017808,2]
[326491702,1715001059475,-500.0,0.00017808,2]
[326491703,1715001059485,-1690.52,0.00017808,2]
[326491704,1715001059494,-2039.16,0.00017808,2]
[326491705,1715001059503,-1071.2,0.00017808,2]
[326491706,1715001059513,-500.0,0.00017808,2]
[326491707,1715001059523,-500.0,0.00017808,2]
[326491708,1715001059533,-1000.0,0.00017808,2]
[326491709,1715001059543,-500.0,0.00017808,2]
[326491710,1715001059552,-1318.39,0.00017808,2]
[326491711,1715001059562,-1137.42,0.00017808,2]
[326491712,1715001059571,-810.2,0.00017808,2]
[326491713,1715001059580,-500.0,0.00017808,2]
[326491714,1715001059590,-1365.47,0.00017808,2]
[326491715,1715001059599,-557.85868136,0.00017808,2]
[326491716,1715001059609,-1072.12,0.00017808,2]
[326491717,1715001059619,-500.0,0.00017808,2]
[326491718,1715001059629,-500.0,0.00017808,2]
[326491719,1715001059638,-500.0,0.00017808,2]
[326491720,1715001059647,-500.0,0.00017808,2]
[326491721,1715001059656,-627.7,0.00017808,2]
[326491722,1715001059665,-500.0,0.00017808,2]
[326491723,1715001059675,-500.0,0.00017808,2]
[326491724,1715001059684,-593.61,0.00017808,2]
[326491725,1715001059694,-500.0,0.00017808,2]
[326491726,1715001059704,-575.24,0.00017808,2]
[326491727,1715001059715,-596.54,0.00017808,2]
[326491728,1715001059725,-500.0,0.00017808,2]
[326491729,1715001059735,-500.0,0.00017808,2]
[326491730,1715001059744,-500.0,0.00017808,2]
[326491731,1715001059754,-2353.15,0.00017808,2]
[326491732,1715001059763,-699.52,0.00017808,2]
[326491733,1715001059772,-500.0,0.00017808,2]
[326491734,1715001059782,-500.0,0.00017808,2]
[326491735,1715001059791,-1800.16,0.00017808,2]
[326491736,1715001059800,-5045.24,0.00017808,2]
[326491737,1715001059809,-500.0,0.00017808,2]
[326491738,1715001059821,-1046.92,0.00017808,2]
[326491739,1715001059831,-733.82,0.00017808,2]
[326491740,1715001059841,-1727.07,0.00017808,2]
[326491741,1715001059850,-593.95,0.00017808,2]
[326491742,1715001059860,-500.0,0.00017808,2]
[326491743,1715001059869,-500.0,0.00017808,2]
[326491744,1715001059878,-500.0,0.00017808,2]
[326491745,1715001059888,-532.27,0.00017808,2]
[326491746,1715001059897,-1962.34,0.00017808,2]
[326491747,1715001059906,-500.0,0.00017808,2]
[326491748,1715001059915,-774.59,0.00017808,2]
[326491749,1715001059925,-2105.62,0.00017808,2]
[326491750,1715001059934,-500.0,0.00017808,2]
[326491751,1715001059943,-500.0,0.00017808,2]
[326491752,1715001059952,-717.58,0.00017808,2]
[326491753,1715001059961,-500.0,0.00017808,2]
[326491754,1715001059972,-500.0,0.00017808,2]
[326491755,1715001059981,-500.0,0.00017808,2]
[326491756,1715001059991,-500.0,0.00017808,2]
[326491757,1715001060001,-500.0,0.00017808,2]
[326491758,1715001060010,-500.0,0.00017808,2]
[326491759,1715001060019,-500.0,0.00017808,2]
[326491760,1715001060028,-500.0,0.00017808,2]
[326491761,1715001060038,-714.46,0.00017808,2]
[326491762,1715001060047,-500.0,0.00017808,2]
[326491763,1715001060056,-500.0,0.00017808,2]
[326491764,1715001060066,-500.0,0.00017808,2]
[326491765,1715001060076,-527.43168018,0.00017808,2]
[326491766,1715001060085,-500.0,0.00017808,2]
[326491767,1715001060095,-336.26946028,0.00017808,2]
[326491768,1715001060104,-500.0,0.00017808,2]
[326491769,1715001060114,-3590.49,0.00017808,2]
[326491770,1715001060124,-1033.57,0.00017808,2]
[326491771,1715001060134,-625.7,0.00017808,2]
[326491772,1715001060143,-500.0,0.00017808,2]
[326491773,1715001060162,-700.17,0.00017808,2]
[326491774,1715001060171,-684.77,0.00017808,2]
[326491775,1715001060181,-500.0,0.00017808,2]
[326491776,1715001060191,-500.0,0.00017808,2]
[326491777,1715001060200,-500.0,0.00017808,2]
[326491778,1715001060209,-572.79,0.00017808,2]
[326491779,1715001060219,-500.0,0.00017808,2]
[326491780,1715001060228,-950.21,0.00017808,2]
[326491781,1715001060238,-500.0,0.00017808,2]
[326491782,1715001060247,-519.29,0.00017808,2]
[326491783,1715001060256,-500.0,0.00017808,2]
[326491784,1715001060265,-686.92,0.00017808,2]
[326491785,1715001060276,-537.99543643,0.00017808,2]
[326491786,1715001060285,-500.0,0.00017808,2]
[326491787,1715001060294,-1345.07,0.00017808,2]
[326491788,1715001060303,-1183.75,0.00017808,2]
[326491789,1715001060312,-500.0,0.00017808,2]
[326491790,1715001060322,-500.0,0.00017808,2]
[326491791,1715001060331,-500.0,0.00017808,2]
[326491792,1715001060344,-14250.63,0.00017808,2]
[326491793,1715001060353,-515.07314727,0.00017808,2]
[326491794,1715001060362,-524.3,0.00017808,2]
[326491795,1715001060372,-8999.19,0.00017808,2]
[326491796,1715001060383,-2692.60092223,0.00017808,2]
[326491797,1715001060399,-974.38923422,0.00017808,2]
[326491799,1715001424292,-1104.0849751,0.00035884,30]
[326491800,1715001424472,-3822.62928322,0.00035884,30]
[326491801,1715001424499,-1000.0,0.00035884,120]
[326491802,1715001424524,-1000.0,0.00035884,120]
[326491803,1715001424551,-742.19,0.00035884,30]
[326491804,1715001424582,-1427.32962267,0.00035884,120]
[326491805,1715001424612,-505.67266514,0.00035884,30]
[326491806,1715001424635,-150.4750248,0.00035884,30]
[326491807,1715001424659,-256.33705417,0.00035884,120]
[326491808,1715001424682,-396.02834548,0.00035884,120]
[326491809,1715001424705,-188.13083369,0.00035884,120]
[326491810,1715001424727,-595.318663,0.00035884,120]
[326491811,1715001424750,-564.24154758,0.00035884,120]
[326491812,1715001424772,-1160.71890291,0.00035884,30]
[326491813,1715001424794,-968.96751337,0.00035884,120]
[326491814,1715001424816,-424.91592851,0.00035884,120]
[326491815,1715001424843,-162.5428364,0.00035884,120]
[326491816,1715001424864,-153.25406117,0.00035884,30]
[326491817,1715001424887,-513.0882765,0.00035884,30]
[326491818,1715001424909,-202.81742547,0.00035884,30]
[326491819,1715001424936,-1011.0667881,0.00035884,120]
[326491820,1715001424959,-1688.68926502,0.00035884,30]
[326491821,1715001424983,-653.0,0.00035884,120]
[326491822,1715001425007,-1683.60528684,0.00035884,30]
[326491823,1715001425030,-4670.59424054,0.00035884,30]
[326491824,1715001425055,-160.0,0.00035884,30]
[326491825,1715001425078,-300.0,0.00035884,120]
[326491826,1715001425104,-300.0,0.00035884,120]
[326491827,1715001425127,-300.0,0.00035884,120]
[326491828,1715001425150,-300.0,0.00035884,120]
[326491829,1715001425172,-300.0,0.00035884,120]
[326491830,1715001425195,-300.0,0.00035884,120]
[326491831,1715001425218,-300.0,0.00035884,120]
[326491832,1715001425242,-300.0,0.00035884,120]
[326491833,1715001425265,-300.0,0.00035884,120]
[326491834,1715001425289,-300.0,0.00035884,120]
[326491835,1715001425312,-300.0,0.00035884,120]
[326491836,1715001425339,-410.0,0.00035884,120]
[326491837,1715001425363,-26796.70836933,0.00035884,30]
[326491838,1715001425387,-907.03058352,0.00035884,30]
[326491839,1715001425411,-659.75915485,0.00035884,120]
[326491840,1715001425434,-7342.28078765,0.00035884,30]
[326491841,1715001425461,-509.0,0.00035884,120]
[326491842,1715001425486,-1523.40558191,0.00035884,120]
[326491843,1715001425511,-838.4957786,0.00035884,30]
[326491844,1715001425536,-889.69316229,0.00035884,60]
[326491845,1715001425558,-400000.0,0.00035884,30]
[326491846,1715001425582,-12929.90508695,0.00035884,120]
[326491847,1715001425613,-1000.0,0.00035884,90]
[326491848,1715001425636,-151.0,0.00035884,90]
[326491849,1715001425659,-10000.0,0.00035884,120]
[326491850,1715001425681,-561.56264165,0.00035884,30]
[326491851,1715001425704,-8804.62651082,0.00035884,30]
[326491852,1715001425728,-557.0,0.00035884,30]
[326491853,1715001425753,-557.0,0.00035884,30]
[326491854,1715001425777,-157.79971002,0.00035884,30]
[326491855,1715001425800,-157.79971002,0.00035884,30]
[326491856,1715001425824,-157.79971002,0.00035884,30]
[326491857,1715001425850,-157.79971002,0.00035884,30]
[326491858,1715001425875,-557.0,0.00035884,30]
[326491859,1715001425897,-157.79971002,0.00035884,30]
[326491860,1715001425920,-157.79971002,0.00035884,30]
[326491861,1715001425944,-157.79971002,0.00035884,30]
[326491862,1715001425967,-157.79971002,0.00035884,30]
[326491863,1715001425989,-157.79971004,0.00035884,30]
[326491864,1715001426012,-557.0,0.00035884,30]
[326491865,1715001426035,-557.0,0.00035884,30]
[326491866,1715001426057,-557.0,0.00035884,30]
[326491867,1715001426080,-557.0,0.00035884,30]
[326491868,1715001426104,-557.0,0.00035884,30]
[326491869,1715001426127,-557.0,0.00035884,30]
[326491870,1715001426149,-557.0,0.00035884,30]
[326491871,1715001426172,-557.0,0.00035884,30]
[326491872,1715001426194,-557.0,0.00035884,30]
[326491873,1715001426216,-557.0,0.00035884,30]
[326491874,1715001426241,-557.0,0.00035884,30]
[326491875,1715001426263,-557.0,0.00035884,30]
[326491876,1715001426285,-557.0,0.00035884,30]
[326491877,1715001426307,-557.0,0.00035884,30]
[326491878,1715001426330,-557.0,0.00035884,30]
[326491879,1715001426354,-557.0,0.00035884,30]
[326491880,1715001426377,-557.0,0.00035884,30]
[326491881,1715001430007,-200.0,0.00027159,120]
[326491882,1715001430036,-500.0,0.00029,30]
[326491883,1715001430063,-1205.70915261,0.00029442,30]
[326491884,1715001430369,-200.0,0.00029609,120]
[326491885,1715001430398,-200.0,0.00029716,120]
[326491886,1715001430423,-1000.0,0.0003,30]
[326491887,1715001430448,-200.0,0.0003,30]
[326491888,1715001430477,-200.59944832,0.0003,30]
[326491889,1715001430503,-500.0,0.0003,30]
[326491890,1715001430533,-200.0,0.00030402,120]
[326491891,1715001430559,-188.612272,0.00030411,41]
[326491892,1715001430587,-188.612272,0.00030411,80]
[326491893,1715001430614,-188.612272,0.00030411,119]
[326491894,1715001430640,-200.0,0.00030722,120]
[326491895,1715001430666,-654.17829117,0.00031,120]
[326491896,1715001430691,-1000.0,0.00031,31]
[326491897,1715001430718,-200.0,0.00031144,120]
[326491898,1715001430744,-200.0,0.00031221,120]
[326491899,1715001430769,-2007.93778606,0.000318,120]
[326491900,1715001430797,-5568.41920017,0.00031917,40]
[326491901,1715001430823,-11462.9189,0.00032244,30]
[326491902,1715001430852,-200.0,0.00032397,120]
[326491903,1715001430880,-200.0,0.00032735,120]
[326491904,1715001430908,-1000.0,0.00033,33]
[326491905,1715001430935,-1000.0,0.00033,33]
[326491906,1715001430964,-200.0,0.00033649,120]
[326491907,1715001430993,-200.0,0.00034087,120]